Cogmind - Beta 10.2 @@@ ROGUE MODE // 2021.08.22 @ 09:30:31 Player: CrossedViper Result: Destroyed by D-53 Grenadier with Mini Grenade Launcher Performance ------------- Evolutions (0) 0 Regions Visited (4) 800 Robots Destroyed (17) 85 Value Destroyed (292) 292 Prototype IDs (23) 460 Alien Tech Used (0) 0 Bonus (135) 135 TOTAL SCORE: 1772 Bonus ------- Aligned with FarCom 300 Friendly Fire -165 Cogmind --------- Core Integrity 0/250 Matter 299/300 Energy 99/100 System Corruption 0% Temperature Cool (0) Movement Core (50) Location -9/Mines Parts ------- > --- POWER (1) -------- (None) > --- PROPULSION (2) --- Light Treads > --- UTILITY (2) ------ (None) > --- WEAPON (2) ------- (None) > --- INVENTORY (4) ---- Humpback Humpback Peak State ------------ > --- POWER ------------ Light Ion Engine > --- PROPULSION ------- Light Treads Light Treads > --- UTILITY ---------- Humpback > --- WEAPON ----------- YOLO Cannon > --- INVENTORY -------- Ion Engine Light Ion Engine Light Treads Light Treads High-capacity Storage Unit High-capacity Storage Unit Humpback Humpback High-capacity Matter Pod Core Shielding Hacking Suite Small Laser Shotgun Shotgun Shotgun Shotgun Shotgun Shotgun Grenade Launcher Rocket Launcher [Rating: 28] Favorites ----------- Power Light Ion Engine Engine Light Ion Engine Propulsion Light Treads Treads Light Treads Utility Large Storage Unit Storage Large Storage Unit Weapon Shotgun Energy Gun Medium Laser Energy Cannon YOLO Cannon Ballistic Gun Shotgun Launcher Rocket Launcher Build | -11 -10 -10 -10 -9 ------- Run | Scr Mat Min Exi Min Slots Evolved . | . . . . . Power . | . . . . . Propulsion . | . . . . . Utility . | . . . . . Weapon . | . . . . . Parts Attached 19 | 6 6 3 4 . Power 2 | 1 . 1 . . Engine 2 | 1 . 1 . . Core . | . . . . . Reactor . | . . . . . Propulsion 5 | 2 1 . 2 . Treads 5 | 2 1 . 2 . Leg . | . . . . . Wheel . | . . . . . Hover . | . . . . . Flight . | . . . . . Utility 4 | 1 2 . 1 . Device . | . . . . . Storage 4 | 1 2 . 1 . Processor . | . . . . . Hackware . | . . . . . Protection . | . . . . . Artifact . | . . . . . Weapon 8 | 2 3 2 1 . Energy Gun 1 | 1 . . . . Energy Cannon 1 | . . . 1 . Ballistic Gun 5 | 1 3 1 . . Ballistic Cannon . | . . . . . Launcher 1 | . . 1 . . Special Weapon . | . . . . . Impact Weapon . | . . . . . Slashing Weapon . | . . . . . Piercing Weapon . | . . . . . Special Melee Weapon . | . . . . . Unidentified Prototypes . | . . . . . Parts Lost 4 | . . . 3 1 Power 1 | . . . 1 . Propulsion 3 | . . . 2 1 Utility . | . . . . . Weapon . | . . . . . Highest Loss Streak 3 | . . . 3 1 Average Slot Usage (%) 89 | . 88 100 84 28 Engine 13 | . 14 14 13 . Treads 28 | . 28 28 28 28 Storage 19 | . 17 28 15 . Energy Gun 2 | . 10 . . . Ballistic Gun 23 | . 17 27 24 . Naked Turns . | . . . . . Heaviest Build 101 | 13 43 43 101 . Greatest Support 40 | 40 40 40 40 3 Greatest Overweight (x) 2 | . 1 1 2 . Average Overweight (x) 1 | . . 1 1 . Largest Inventory Capacity 24 | 6 16 16 24 4 Average Capacity 16 | 4 10 16 22 4 Most Carried 24 | 2 10 13 24 4 Average Carried 12 | 1 5 12 18 4 Final Capacity 16 | 6 16 16 4 4 Final Carried 13 | 2 10 13 4 4 Class Distribution -------------------- 65% | Mutant 34% | Hauler-Mutant Dominant Class ---------------- Mutant | -10/Materials Mutant | -10/Mines Hauler-Mutant | -10/Exiles Mutant | -9/Mines Resources | -11 -10 -10 -10 -9 ----------- Run | Scr Mat Min Exi Min Matter Collected 582 | 238 242 92 10 . Remotely . | . . . . . Salvage Created 507 | . 478 26 3 . Parts 33 | . 23 7 3 . Haulers Intercepted 2 | . 2 . . . Recyclers Shooed 1 | . 1 . . . Parts Field Recycled . | . . . . . Retrieved Matter . | . . . . . Parts Self-Destructed . | . . . . . Prevented . | . . . . . Kills | -11 -10 -10 -10 -9 ------- Run | Scr Mat Min Exi Min Combat Hostiles Destroyed 9 | . 6 3 . . Guns 6 | . 6 . . . AOE 3 | . . 3 . . Classes Destroyed 7 | . 6 1 . . Worker 2 | . 1 1 . . Hauler 2 | . 2 . . . Recycler 1 | . 1 . . . Operator 1 | . 1 . . . Watcher 1 | . 1 . . . Swarmer 3 | . . 3 . . Grunt 6 | . 6 . . . Best Kill Streak 4 | . 4 3 1 . Combat Bots Only 3 | . 3 3 . . Max Kills in Single Turn 2 | . 2 2 1 . Gunslinging . | . . . . . Exploded 2 | . . 2 . . Melee . | . . . . . Uniques/NPCs Destroyed 1 | . . . 1 . EX-DEC (-10/Exiles) Combat | -11 -10 -10 -10 -9 -------- Run | Scr Mat Min Exi Min Damage Taken 1524 | . 368 90 709 357 Core 291 | . 58 6 85 142 Absorbed by Shields . | . . . . . Core Remaining (%) 100 | 100 . . . . Volleys Fired 55 | . 48 4 3 . Largest 2 | . 2 2 1 . Hottest 100 | . 70 46 100 . Shots Fired 105 | . 96 6 3 . Gun 100 | . 96 4 . . Cannon 3 | . . . 3 . Launcher 2 | . . 2 . . Special . | . . . . . Kinetic 60 | . 56 4 . . Thermal 43 | . 40 . 3 . Explosive 2 | . . 2 . . Electromagnetic . | . . . . . Robot Hit Streak 9 | . 9 1 . . Robot Miss Streak 5 | . 5 5 3 . Penetration Max . | . . . . . Secondary Targets . | . . . . . Shots Hit Robots 58 | . 57 1 . . Core Hits 34 | . 26 4 2 2 Critical Hits 1 | . 1 . . . Critical Kills . | . . . . . Critical Parts Destroyed 1 | . 1 . . . Melee Attacks . | . . . . . Impact . | . . . . . Slashing . | . . . . . Piercing . | . . . . . Sneak Attacks . | . . . . . Combat Hostiles . | . . . . . Follow-up Attacks . | . . . . . Damage Inflicted 1275 | . 754 192 326 3 Guns 732 | . 721 11 . . Cannons 122 | . . . 122 . Explosions 361 | . . 157 204 . Melee . | . . . . . Ramming 60 | . 33 24 . 3 Kinetic 435 | . 424 11 . . Thermal 623 | . 297 . 326 . Explosive 157 | . . 157 . . Electromagnetic . | . . . . . Impact . | . . . . . Slashing . | . . . . . Piercing . | . . . . . Highest Corruption . | . . . . . Average Corruption . | . . . . . Corruption Purged . | . . . . . Overload Shots . | . . . . . Overflow Damage 26 | . . . 26 . Projectiles . | . . . . . Explosions 26 | . . . 26 . Melee . | . . . . . Knockbacks 1 | . 1 . . . Impact 1 | . 1 . . . Kinetic . | . . . . . Secondary . | . . . . . Self-Inflicted Damage . | . . . . . Shots . | . . . . . Rammed 10 | . 3 4 . 3 Targets Rammed 10 | . 3 4 . 3 Kicked . | . . . . . Crushed . | . . . . . Highest Temperature 135 | . 135 . 40 . Average Temperature 31 | . 32 . 23 . Received Heat Transfer 267 | . 207 . 40 20 Siege Activations . | . . . . . Robots Corrupted . | . . . . . Combat Hostiles . | . . . . . Parts Fried . | . . . . . Impact Corruptions . | . . . . . Robots Melted . | . . . . . Combat Hostiles . | . . . . . Parts Melted 3 | . 1 . 2 . Heat Transferred 1171 | . 851 . 320 . Parts Sabotaged . | . . . . . Parts Stolen . | . . . . . Parts Stripped . | . . . . . Power Chain Reactions . | . . . . . Missiles Intercepted . | . . . . . Alert | -11 -10 -10 -10 -9 ------- Run | Scr Mat Min Exi Min Peak Influence 137 | . 137 75 . 75 Initial 16 | . . 16 . . Average 29 | . 29 31 . 31 Maximum Alert Level . | . . . . . Low Security (%) 100 | 100 100 100 . 100 Level 1 . | . . . . . Level 2 . | . . . . . Level 3 . | . . . . . Level 4 . | . . . . . Level 5 . | . . . . . High Security . | . . . . . Max Security . | . . . . . Squads Dispatched 3 | . 3 . . . Investigation 1 | . 1 . . . Extermination . | . . . . . Reinforcement 2 | . 2 . . . Assault . | . . . . . Garrison . | . . . . . Intercept . | . . . . . Construction Impeded . | . . . . . Haulers Reinforced . | . . . . . Stealth | -11 -10 -10 -10 -9 --------- Run | Scr Mat Min Exi Min Distress Signals 1 | . 1 . . . Communications Jammed . | . . . . . Distress Signals . | . . . . . Times Spotted 57 | . 21 3 19 14 Peak Tracking Total 11 | . 4 3 11 7 Tactical Retreats 3 | . . . 2 1 Traps | -11 -10 -10 -10 -9 ------- Run | Scr Mat Min Exi Min Traps Triggered 1 | . 1 . . . Indirectly . | . . . . . Trap Hack Attempts . | . . . . . Triggered . | . . . . . Disarmed . | . . . . . Reprogrammed . | . . . . . Reused . | . . . . . Traps Extracted . | . . . . . Installed . | . . . . . Triggered . | . . . . . Machines | -11 -10 -10 -10 -9 ---------- Run | Scr Mat Min Exi Min Machines Disabled 3 | . . . 3 . Max in Single Turn 1 | . . . 1 . Machines Sabotaged . | . . . . . Garrisons Compromised . | . . . . . Overloaded Fab Kills . | . . . . . Fab Network Shutdowns . | . . . . . Hacking | -11 -10 -10 -10 -9 --------- Run | Scr Mat Min Exi Min Machines Accessed 5 | . 3 . 2 . Terminals 2 | . 2 . . . Fabricators . | . . . . . Repair Stations . | . . . . . Recycling Units 1 | . 1 . . . Scanalyzers . | . . . . . Garrison Access . | . . . . . Total Hacks 9 | . 7 . 2 . Successful 5 | . 3 . 2 . Failed 4 | . 4 . . . Catastrophic 1 | . 1 . . . Database Lockouts . | . . . . . Manual 8 | . 7 . 1 . Terminals 5 | . 5 . . . Fabricators . | . . . . . Repair Stations . | . . . . . Recycling Units 2 | . 2 . . . Scanalyzers . | . . . . . Garrison Access . | . . . . . Terminal Hacks 4 | . 2 . 2 . Record 1 | . . . 1 . Robot Analysis 2 | . 2 . . . EX-Prototype ID Bank 1 | . . . 1 . Fabricator Hacks . | . . . . . Repair Station Hacks . | . . . . . Recycling Unit Hacks . | . . . . . Scanalyzer . | . . . . . Garrison Access Hacks . | . . . . . Unauthorized Hacks 1 | . 1 . . . Terminals . | . . . . . Fabricators . | . . . . . Repair Stations . | . . . . . Recycling Units 1 | . 1 . . . Tunnel 1 | . 1 . . . Scanalyzers . | . . . . . Garrison Access . | . . . . . Data Cores Recovered . | . . . . . Used . | . . . . . Hacking Detections 1 | . 1 . . . Full Trace Events 1 | . 1 . . . Feedback Events . | . . . . . Feedback Blocked . | . . . . . Robot Schematics Acquired . | . . . . . Robots Built . | . . . . . Matter . | . . . . . Time . | . . . . . Total Robot Build Rating . | . . . . . Part Schematics Acquired . | . . . . . Parts Built . | . . . . . Matter . | . . . . . Time . | . . . . . Total Part Build Rating . | . . . . . Parts Repaired . | . . . . . Time . | . . . . . Parts Recycled . | . . . . . Recycled Matter . | . . . . . Retrieved Matter . | . . . . . Retrieved Components . | . . . . . Parts Scanalyzed . | . . . . . Part Schematics Acquired . | . . . . . Parts Damaged . | . . . . . Bothacking | -11 -10 -10 -10 -9 ------------ Run | Scr Mat Min Exi Min Used RIF Installer . | . . . . . Robots Hacked . | . . . . . Non-combat . | . . . . . Combat . | . . . . . Robot Hacks Applied . | . . . . . Relay Couplers Released . | . . . . . Robots Rewired . | . . . . . Allies Hacked . | . . . . . Hacks Repelled . | . . . . . Allies | -11 -10 -10 -10 -9 -------- Run | Scr Mat Min Exi Min Total Allies . | . . . . . Largest Group . | . . . . . Highest-Rated Group . | . . . . . Highest-Rated Ally . | . . . . . Total Orders . | . . . . . Ally Attacks . | . . . . . Total Damage . | . . . . . Kills . | . . . . . Allies Corrupted . | . . . . . Allies Melted . | . . . . . Intel | -11 -10 -10 -10 -9 ------- Run | Scr Mat Min Exi Min Robot Analysis Total 2 | . 2 . . . Derelict Logs Recovered 3 | . . 2 . 1 Drone Launches . | . . . . . Drone Recoveries . | . . . . . Exploration | -11 -10 -10 -10 -9 ------------- Run | Scr Mat Min Exi Min Turns Passed 3978 | 77 1105 1093 1646 57 Spaces Moved 2131 | 45 561 594 841 90 Core 126 | 4 . . 32 90 Treads 2005 | 41 561 594 809 . Legs . | . . . . . Wheels . | . . . . . Hover . | . . . . . Flight . | . . . . . Fastest Speed 50 | 50 160 180 50 50 Average Speed 173 | 150 164 180 190 50 Slowest Speed 200 | 160 180 180 200 50 Overloaded Moves . | . . . . . Propulsion Burnouts . | . . . . . Robots Hopped . | . . . . . Cave-ins Triggered . | . . . . . Exploration Rate (%) 52 | 4 63 87 71 35 Regions Visited 4 Branch Regions 3 Pre-discovered Areas 3 | . 1 1 1 . Known Exits Taken . | . . . . . Unknown Exits Taken 4 | 1 1 1 1 . Scrap Searched . | . . . . . Spaces Dug 16 | . . 16 . . Terrain Destroyed 18 | . . 16 2 . Melee . | . . . . . Projectile . | . . . . . AOE 18 | . . 16 2 . Terrain Rammed . | . . . . . Walls Destroyed . | . . . . . Machines Disabled . | . . . . . Actions | -11 -10 -10 -10 -9 --------- Run | Scr Mat Min Exi Min Total 2282 | 52 645 608 877 100 Wait 33 | . 17 . 9 7 Move 2127 | 44 560 593 840 90 Hop . | . . . . . Pick Up 28 | 2 8 3 15 . Fast Attach 13 | 6 6 . 1 . Attach 3 | . . . 3 . Detach 2 | . . . 2 . Swap 3 | . . 3 . . Drop 8 | . 3 1 4 . Fire 55 | . 48 4 3 . Melee . | . . . . . Ram . | . . . . . Kick . | . . . . . Crush 10 | . 3 4 . 3 Escape Stasis . | . . . . . Rewire . | . . . . . Trap . | . . . . . Miscellaneous . | . . . . . Route ------- -11/Scrapyard -10/Materials (discovered 2 exits: [*Mat] / [*Min]) -10/Mines (discovered 3 exits: [*Mat x2] / *Exi) -10/Exiles -9/Mines History --------- Turn | Location | Event 27 | -11/Scrapyard | Discovered new exit (range 15) 78 | -11/Scrapyard | Entered Materials 304 | -10/Materials | Build established: Mutant 751 | -10/Materials | Discovered new exit (range 12) 859 | -10/Materials | Discovered new exit (range 14) 1183 | -10/Materials | Entered Mines 1184 | -10/Mines | Learned location of Storage (-8) 1206 | -10/Mines | Received a Rocket Launcher from a helpful Derelict 1267 | -10/Mines | Met a Derelict bent on vengeance 1765 | -10/Mines | Discovered new exit (range 9) 2006 | -10/Mines | Deemed a non-threat by the Exiles lab entrance 2006 | -10/Mines | Discovered new exit (range 5) 2152 | -10/Mines | Discovered new exit (range 9) 2276 | -10/Mines | Entered Exiles 2321 | -10/Exiles | Met 8R-AWN 2350 | -10/Exiles | Met EX-HEX 2428 | -10/Exiles | Met EX-DEC 2458 | -10/Exiles | Learned location of Zion (-6) 2767 | -10/Exiles | Met EX-BIN 2829 | -10/Exiles | Build established: Hauler-Mutant 2974 | -10/Exiles | Aligned with FarCom system 2976 | -10/Exiles | Given EX-Vault access code 3022 | -10/Exiles | Opened EX-Vault 3066 | -10/Exiles | Warned to stay clear of 0b10 Research branches 3696 | -10/Exiles | Found YOLO Cannon 3882 | -10/Exiles | Attacked by the Exiles 3890 | -10/Exiles | Destroyed EX-DEC 3898 | -10/Exiles | Core integrity fell below 50% 3918 | -10/Exiles | Discovered new exit (range 10) 3922 | -10/Exiles | Entered Mines 3925 | -9/Mines | Learned Materials stockpile data 3935 | -9/Mines | Lost 3 parts (1p2n) 3943 | -9/Mines | Core integrity fell below 20% 3947 | -9/Mines | Assembled infested the area 3979 | -9/Mines | Destroyed by D-53 Grenadier with Mini Grenade Launcher Last Messages --------------- 03884_ EX-DEC deploys DAS Turret. 03885_ Machine disabled. 03891_ Lgt. Treads destroyed. 03892_ EX-BIN: "I just want to science!" 03893_ Lgt. Ion Engine destroyed. 03904_ Lgt. Treads destroyed. 03906_ Dropped YOLO Cannon. 03906_ Dropped Humpback. 03918_ EXIT=FOUND LOCATION=UNKNOWN GOAL=ESCAPE 03925_ Acquired derelict log, extracted data. Data stored: Materials stockpile data. 03935_ Slammed into S-10 Pest. 03947_ ALERT: Infestation in the mines, dispatching Demolisher response squad. 03953_ S-10 Pest destroyed. 03962_ C-30 ARC bursts open, deploying its payload. 03962_ D-53 Grenadier unfolds itself. 03979_ Lgt. Treads destroyed. Map ----- +----------------------------------------------------+ | | | | | | | | | | | | | | | | | | | | | | | | | ????????????????????????????????????????????????? | | ????????????????????????????????????????????????? | | ????????????????????????????????????????????????? | | ?????????????????####???????????????????????????? | | ????????????????## ####????????????????????????? | | ???????????????## # ###??????????????????????? | | ??????????????## ###????????????????????? | | ?????????????## #????????????????????? | | ?????????????# #?????????????????????? | | ?????????????# #?????????????????????? | | ????????????## d #?################????? | | ???????## ## ## #?# ?? | | ???????# # #?# % ?? | | ??????# # d@ #?# #########????????? | | ??????# $ ## #### #????????????????? | | ??????# #### #????????????????? | | ??????# #??####### #????????????????? | | ??????# #????????# #????????????????? | | ??????# ###### ##????????# #????????????????? | | ??????# ??????####??????????# #????????????????? | | ????????????????????????????# #????????????????? | | ????????????????????????????# #????????????????? | | ????????????????????????????# #????????????????? | | ????????????????????????????# #????????????????? | | ????????????????????????????# #????????????????? | | ???????????????????????????## #????????????????? | | ??????????????????????????## ##???????????????? | | ?????????????????????????## #???????????????? | | ????????????????????????## #???????????????? | | ???????????????????????## ##???????????????? | | ???????????????????????# #????????????????? | | ???????????????????????# ##????????????????? | | ??????????????# ####### #?????????????????? | | ??????????????# #?????????????????? | | ??????????????# % #?????????????????? | | ??????????????#########%* #?????????????????? | | ???????????????????## ### ##?????????????????? | | ???????????????????# *%##?####??????????????????? | +----------------------------------------------------+ Best States ------------- Heat Dissipation 25 Energy Generation 10 Energy Capacity 250 Matter Stores 300 Matter Capacity 300 Sight Range 16 Terrain Scan Density 10 Evasion (%) 50 Recoil Reduction 2 Item Schematics ----------------- None Robot Schematics ------------------ None Fabricated ------------ Nothing Alien Tech Used ----------------- None Achievements -------------- None Challenges ------------ None Game ------ Seed EtherialStormLog Manual? 0 Play Time 00:12:41 Cumulative 521.0 hours Start 2021.08.22 @ 09:14:43 End 2021.08.22 @ 09:30:31 Sessions 1 Manual Loads 0 Difficulty Rogue Special Mode None Game No. 378 Rogue 371 Adventurer 0 Explorer 7 Win Type - Total 28 Types 9/3/11/1/0/1/1/1/1 Lore% 87 Gallery% 95 Achievement% 81 Wizard Run 0 Options --------- ASCII 0 Keyboard 0 Movement Numpad Keybinds 0 Fullscreen 1 Font 18/X11Bold Map View 76x50 Tactical HUD 1 Map Filters NONE Filters NONE Steam 1 RUN: 6c4fb0f8-2d8c-4f6b-b0d0-44e3af0b0102